fUSD/lending_fUSD_20241008
["ID","MTS","AMOUNT","RATE_DAILY","PERIOD"]
[340038536,1728365000718,-500.0,0.00010958,2]
[340038537,1728365000741,-500.0,0.00010958,2]
[340038538,1728365000765,-500.0,0.00010958,2]
[340038539,1728365000788,-162.02,0.00010959,2]
[340038540,1728365000811,-182.95,0.00010959,2]
[340038541,1728365000835,-152.75,0.00010959,2]
[340038542,1728365000858,-12526.29156412,0.00010987,2]
[340038543,1728365001738,-50000.0,0.00010987,2]
[340038544,1728365002964,-50000.0,0.00010987,2]
[340038545,1728365004726,-50000.0,0.00010987,2]
[340038546,1728365005776,-18496.46175198,0.00010987,2]
[340038547,1728365005801,-1297.0,0.00010988,2]
[340038548,1728365005824,-934.0,0.00010988,2]
[340038549,1728365005846,-559.0,0.00010988,2]
[340038550,1728365005871,-406.337,0.00010988,2]
[340038551,1728365005894,-252.90902482,0.00010989,2]
[340038552,1728365005917,-153.864,0.0001099,2]
[340038553,1728365005941,-27900.4282232,0.0001099,2]
[340038554,1728365007010,-50000.0,0.0001099,2]
[340038555,1728365008064,-500.0,0.00010912,2]
[340038556,1728365008087,-49500.0,0.0001099,2]
[340038557,1728365009261,-50000.0,0.0001099,2]
[340038558,1728365010451,-50000.0,0.0001099,2]
[340038559,1728365030812,-5453.0856,0.0001078,2]
[340038560,1728365030835,-22599.5717768,0.0001099,2]
[340038561,1728365030860,-1573.28653482,0.00010999,2]
[340038562,1728365030882,-584.0,0.00011,2]
[340038563,1728365030909,-19790.05608838,0.00011,2]
[340038564,1728365031943,-50000.0,0.00011,2]
[340038565,1728365032912,-50000.0,0.00011,2]
[340038566,1728365033858,-1121.0818409,0.000109,2]
[340038567,1728365033885,-48878.9181591,0.00011,2]
[340038568,1728365035013,-50000.0,0.00011,2]
[340038569,1728365036048,-50000.0,0.00011,2]
[340038570,1728365037330,-50000.0,0.00011,2]
[340038571,1728365038321,-521.0,0.00011,2]
[340038572,1728365038349,-49479.0,0.00011,2]
[340038573,1728365039701,-50000.0,0.00011,2]
[340038578,1728365119893,2401.9828625,9e-05,2]
[340038579,1728365129822,233.93117991,0.000101,2]
[340038607,1728365413161,634.78,8.324e-05,2]
[340038621,1728365431768,-634.78,0.00010588,2]
[340038623,1728365431779,-1292.6215,0.0001068,2]
[340038625,1728365431788,-558.597,0.00010732,2]
[340038627,1728365431797,-357.531,0.00010732,2]
[340038629,1728365431806,-150.0,0.00010779,2]
[340038631,1728365431815,-2885.14231557,0.0001078,2]
[340038633,1728365431827,-1951.37137078,0.0001078,2]
[340038634,1728365431838,-1198.16775,0.0001078,2]
[340038635,1728365431849,-500.0,0.0001078,2]
[340038636,1728365431861,-255.5570155,0.0001078,2]
[340038637,1728365431872,-554.04576987,0.0001078,2]
[340038638,1728365431886,-703.37788318,0.0001078,2]
[340038639,1728365431897,-340.78735789,0.0001078,2]
[340038640,1728365431908,-640.09000008,0.0001078,2]
[340038641,1728365432013,-816.05578721,0.0001078,2]
[340038642,1728365432025,-63652.79244992,0.0001078,2]
[340038643,1728365432035,-5673.4177,0.0001078,2]
[340038644,1728365432044,-250.0,0.0001087,2]
[340038645,1728365432054,-66483.99498379,0.0001088,2]
[340038647,1728365432063,-11522.64797253,0.00010899,2]
[340038649,1728365432073,-1000.0,0.000109,2]
[340038650,1728365432083,-36272.9649,0.000109,2]
[340038652,1728365432096,-485.38238232,0.00010958,2]
[340038654,1728365432105,-182.95,0.00010959,2]
[340038655,1728365432114,-164.23687684,0.00010973,2]
[340038657,1728365432123,-4318.5862431,0.0001099,2]
[340038659,1728365432132,-2878.2147328,0.00010997,2]
[340038660,1728365432141,-177.03631738,0.00010999,2]
[340038661,1728365432151,-521.0,0.00011,2]
[340038662,1728365432160,-825.86206547,0.00011,2]
[340038663,1728365432172,-419.65370902,0.00011,2]
[340038664,1728365432184,-1805.393058,0.00011,2]
[340038665,1728365437877,-47262.88261093,0.00011,2]
[340038666,1728365437937,-531.60301814,0.00011,2]
[340038667,1728365437948,-29758.31671646,0.00011,2]
[340038668,1728365438109,-310.24010705,0.00011,2]
[340038669,1728365438121,-275.96458678,0.00011,2]
[340038670,1728365438174,-1826.19952413,0.00011,2]
[340038671,1728365438186,-771.52666647,0.00011,2]
[340038674,1728365439954,-626.125,0.00011,2]
[340038675,1728365440127,-366.95072157,0.00011,2]
[340038676,1728365440319,-101.58184247,0.00011,2]
[340038686,1728365443660,-4734.4507622,0.00011,2]
[340038687,1728365443707,-53089.96152761,0.00011,2]
[340038688,1728365443720,-65811.01932884,0.00011,2]
[340038689,1728365443732,-5007.98400001,0.00011,2]
[340038690,1728365443743,-311.61708095,0.00011,2]
[340038695,1728365446034,-435.93874686,0.00011,2]
[340038696,1728365446066,-1203.491268,0.00011,2]
[340038697,1728365446076,-61303.54393119,0.00011,2]
[340038709,1728365922363,589.82,8.363e-05,2]
[340038710,1728365988234,-150.58,0.0001024,2]
[340038711,1728365988255,-250.0,0.00010301,2]
[340038712,1728365988275,-499.55,0.00010302,2]
[340038713,1728365988296,-99.87,0.00010317,2]
[340038714,1728365990500,-150.13,0.00010317,2]
[340038715,1728366167753,186.95,0.0001029,2]
[340038716,1728366188470,662.92,0.00010271,2]
[340038717,1728366290061,250.0,0.00010228,2]
[340038719,1728366340179,2075.45834593,0.00023,120]
[340038720,1728366507735,578.71,8.32e-05,2]
[340038728,1728366631927,-250.0,0.00010247,2]
[340038729,1728366631937,-62.02099594,0.00010271,2]
[340038730,1728366631987,-567.14,0.00010271,2]
[340038731,1728366632102,-272.1846872,0.00010271,2]
[340038735,1728366638062,-22335.73431686,0.00010271,2]
[340038737,1728366638071,-462.35,0.00010291,2]
[340038738,1728366638080,-1000.0,0.0001045,2]
[340038739,1728366638088,-1000.0,0.0001045,2]
[340038740,1728366638097,-1000.0,0.0001045,2]
[340038741,1728366638106,-578.71,0.00010584,2]
[340038742,1728366638116,-150.0,0.00010877,2]
[340038743,1728366638125,-1625.61586106,0.0001089,2]
[340038744,1728366638135,-428.25568314,0.00010899,2]
[340038745,1728366638144,-150.0,0.00010899,2]
[340038746,1728366638153,-409.033,0.000109,2]
[340038747,1728366638162,-1451.54527162,0.000109,2]
[340038748,1728366638227,-12507.82382838,0.000109,2]
[340038749,1728366638237,-43160.4636,0.000109,2]
[340038750,1728366638246,-11119.78684881,0.000109,2]
[340038751,1728366638255,-450.08788033,0.000109,2]
[340038752,1728366638263,-169.22076499,0.000109,2]
[340038753,1728366638272,-500.0,0.00010912,2]
[340038754,1728366638281,-154.41,0.00010959,2]
[340038755,1728366638290,-156.06,0.00010959,2]
[340038756,1728366638299,-182.95,0.00010959,2]
[340038757,1728366638308,-537.65,0.0001096,2]
[340038758,1728366638317,-289.95,0.00010969,2]
[340038759,1728366638326,-1015280.30963205,0.00011,2]
[340038760,1728366638337,-5124.74242063,0.00011,2]
[340038761,1728366638348,-5906.63080696,0.00011,2]
[340038762,1728366638396,-488.51108,0.000109,2]
[340038763,1728366638405,-1517.8330601,0.00011,2]
[340038764,1728366638417,-1077.80698439,0.00011,2]
[340038765,1728366638455,-2424.99999999,0.00011,2]
[340038766,1728366638466,-691.4869725,0.00011,2]
[340038770,1728366639952,-195.295982,0.000109,2]
[340038771,1728366639962,-273.204018,0.00011,2]
[340038773,1728366640228,-1399.85886565,0.00011,2]
[340038774,1728366640448,-1085.03166485,0.00011,2]
[340038775,1728366640460,-41838.6099227,0.00011,2]
[340038779,1728366643272,-275.01000006,0.00011,2]
[340038780,1728366643383,-555.49999972,0.00011,2]
[340038783,1728366645978,-980.19688546,0.00011,2]
[340038784,1728366646037,-1570.70981235,0.00011,2]
[340038785,1728366646256,-250.300134,0.00011,2]
[340038809,1728366872881,250.0,0.00010219,2]
[340038810,1728366886559,250.0,0.00010219,2]
[340038812,1728367093265,539.84,8.31e-05,2]
[340038813,1728367194460,157.26,0.0001021,2]
[340038815,1728367235067,369.88,0.00010203,2]
[340038816,1728367259551,286.06,0.00010222,2]
[340038820,1728367576807,-423.62,0.00010245,2]
[340038821,1728367576830,-11191.38,0.00010245,2]
[340038822,1728367594205,531.73,8.34e-05,2]
[340038823,1728367629470,150.58,0.00010196,2]
[340038824,1728367635849,5673.76,0.00010196,2]
[340038831,1728367832071,-250.0,0.0001024,2]
[340038832,1728367832080,-348.97184433,0.00010245,2]
[340038833,1728367832091,-1298.29851612,0.00010245,2]
[340038835,1728367832102,-11061.34963955,0.00010245,2]
[340038837,1728367832111,-250.0,0.00010245,2]
[340038838,1728367832120,-1198.05036045,0.00010474,2]
[340038839,1728367832372,-1974.8225,0.00010474,2]
[340038840,1728367835103,-420.816,0.00010474,2]
[340038841,1728367835165,-3831.16040795,0.00010474,2]
[340038842,1728367835176,-261.39657885,0.00010474,2]
[340038843,1728367835225,-1830.0504098,0.00010474,2]
[340038844,1728367835236,-544.05619784,0.00010474,2]
[340038845,1728367835286,-792.5901174,0.00010474,2]
[340038846,1728367835299,-68.21622771,0.00010474,2]
[340038847,1728367835308,-531.73,0.00010604,2]
[340038848,1728367835318,-630.12,0.00010837,2]
[340038849,1728367835328,-1000.0,0.00010899,2]
[340038850,1728367835338,-150.0,0.00010899,2]
[340038851,1728367835348,-2051.0037,0.000109,2]
[340038852,1728367835358,-162.203,0.000109,2]
[340038853,1728367835368,-363.803,0.000109,2]
[340038854,1728367835378,-88.74093668,0.000109,2]
[340038855,1728367835392,-196.62707101,0.000109,2]
[340038856,1728367835402,-208.94796885,0.000109,2]
[340038858,1728367835412,-261.585,0.000109,2]
[340038860,1728367835422,-1000.0,0.000109,2]
[340038862,1728367835433,-945.94868736,0.000109,2]
[340038864,1728367835453,-54.05131264,0.000109,2]
[340038866,1728367835463,-488.6274679,0.000109,2]
[340038868,1728367835516,-21.03722856,0.000109,2]
[340038869,1728367838240,-990.63368508,0.000109,2]
[340038870,1728367838352,-446.70161846,0.000109,2]
[340038871,1728367838362,-154.62586306,0.000109,2]
[340038872,1728367838371,-500.0,0.00010912,2]
[340038873,1728367838380,-499.99,0.00010912,2]
[340038874,1728367838390,-150.99,0.00010912,2]
[340038875,1728367838399,-661.15,0.00010912,2]
[340038876,1728367838408,-555.35,0.00010912,2]
[340038877,1728367838418,-170.82,0.00010959,2]
[340038878,1728367838427,-182.95,0.00010959,2]
[340038879,1728367838440,-320.29,0.00010959,2]
[340038880,1728367838449,-2319.29,0.00010959,2]
[340038881,1728367838459,-150.99,0.00010959,2]
[340038882,1728367838468,-858.42,0.00010959,2]
[340038883,1728367838478,-299.99,0.00010959,2]
[340038884,1728367838488,-5173.97,0.00010959,2]
[340038885,1728367838498,-500.0,0.00010973,2]
[340038886,1728367838507,-505.05575073,0.00010989,2]
[340038887,1728367838518,-199.45,0.0001099,2]
[340038888,1728367838527,-3250.01,0.0001099,2]
[340038889,1728367838536,-999.99,0.0001099,2]
[340038890,1728367838545,-218.54657767,0.0001099,2]
[340038891,1728367838554,-218.54657767,0.0001099,2]
[340038892,1728367838563,-218.54657767,0.0001099,2]
[340038893,1728367838572,-372.0752996,0.00010997,2]
[340038894,1728367838581,-19652.5982211,0.00010997,2]
[340038895,1728367838590,-205.50192375,0.00010999,2]
[340038896,1728367838598,-239.42979715,0.00010999,2]
[340038897,1728367838608,-178.86781759,0.00010999,2]
[340038898,1728367838617,-500.0,0.00010999,2]
[340038899,1728367838626,-164.55120911,0.00010999,2]
[340038901,1728367838636,-500.0,0.00010999,2]
[340038902,1728367838645,-500.0,0.00010999,2]
[340038903,1728367838654,-500.0,0.00010999,2]
[340038904,1728367838663,-344.57317214,0.00010999,2]
[340038905,1728367838672,-1000451.12705445,0.00011,2]
[340038906,1728367838684,-6671.76743209,0.00011,2]
[340038924,1728367840251,-266.41406715,0.00011,2]
[340039207,1728367843456,-735.0,0.00011,2]
[340039249,1728367844806,298.0,0.00010222,2]
[340039256,1728367846372,-294.41107699,0.000109,2]
[340039262,1728367850078,300.0,0.000103,3]
[340039263,1728367852198,600.0,0.000104,3]
[340039264,1728367854389,1000.0,0.000105,3]
[340039265,1728367856491,1300.0,0.000106,3]
[340039266,1728367858589,104.22264467,0.000107,3]
[340039267,1728367858614,1595.77735533,0.000107,3]
[340039268,1728367860718,300.0,0.000108,3]
[340039269,1728367862806,300.0,0.000109,3]
[340039272,1728367933313,1000.0,0.00021,90]
[340039274,1728367993875,1000.0,0.00014,10]
[340039275,1728368026962,2495.6,0.00010231,2]
[340039276,1728368077243,-2364.23036804,0.0001035,2]
[340039277,1728368077264,-635.59200692,0.0001045,2]
[340039278,1728368077285,-10000.0,0.0001045,2]
[340039279,1728368077305,-2718.32,0.00010897,2]
[340039280,1728368077325,-170.57,0.00010897,2]
[340039281,1728368077345,-813.9834582,0.00010897,2]
[340039282,1728368077366,-150.0,0.00010899,2]
[340039283,1728368077387,-76911.41892301,0.000109,2]
[340039284,1728368077407,-1000.0,0.000109,2]
[340039285,1728368077428,-11185.32954427,0.000109,2]
[340039286,1728368077448,-2500.0,0.000109,2]
[340039287,1728368077468,-651.4299,0.000109,2]
[340039288,1728368077490,-153.99188182,0.000109,2]
[340039289,1728368077510,-2528.8652,0.000109,2]
[340039290,1728368077533,-486.3573,0.000109,2]
[340039291,1728368077558,-170.57,0.00010908,2]
[340039292,1728368077580,-500.0,0.00010912,2]
[340039293,1728368077602,-170.57,0.00010919,2]
[340039294,1728368077623,-170.57,0.0001093,2]
[340039295,1728368077644,-170.57,0.0001094,2]
[340039296,1728368077663,-346.97,0.00010943,2]
[340039297,1728368077685,-170.57,0.00010951,2]
[340039298,1728368077705,-250.0,0.00010958,2]
[340039299,1728368077724,-500.0,0.00010973,2]
[340039300,1728368077744,-23900.0,0.00010995,2]
[340039301,1728368077764,-239.42979715,0.00010999,2]
[340039302,1728368077785,-260.50813024,0.00010999,2]
[340039303,1728368077812,-328278.84202936,0.00011,2]
[340039304,1728368077836,-3864862.2065084,0.00011,2]
[340039305,1728368077859,-1144513.47833087,0.00011,2]
[340039306,1728368077884,-2350266.7068844,0.00011,2]
[340039307,1728368077904,-206.65,0.00011,2]
[340039308,1728368077926,-519205.74334105,0.00011,2]
[340039309,1728368077946,-275.0,0.00011,2]
[340039310,1728368077966,-500.0,0.00011,2]
[340039311,1728368077986,-780.0,0.00011,2]
[340039312,1728368078008,-335564.91447956,0.00011,2]
[340039313,1728368078028,-941737.12818609,0.00011,2]
[340039314,1728368078054,-577595.3383171,0.00011,2]
[340039315,1728368078076,-82094.14541352,0.00011,2]
[340039317,1728368128180,170.92,8.76e-05,2]
[340039318,1728368151404,1800.91959571,0.00021,120]
[340039319,1728368208964,583.81,8.32e-05,2]
[340039320,1728368335315,170.68,0.00010184,2]
[340039321,1728368444374,23900.0,0.00010185,2]
[340039322,1728368446093,200.0,0.00010185,2]
[340039323,1728368471769,250.0,0.00010199,2]
[340039324,1728368562389,176.26,0.00010215,2]
[340039325,1728368562988,-150.0,0.00010232,2]
[340039326,1728368638230,5818.3,0.00010097,2]
[340039327,1728368670272,250.0,0.00010097,2]
[340039328,1728368702942,609.58,8.219e-05,2]
[340039329,1728368732262,279.97,0.00010137,2]
[340039330,1728368740604,316.3,0.00010218,2]
[340039332,1728368917301,1000.0,0.00010157,2]
[340039362,1728369007378,23900.0,0.00010175,2]
[340039371,1728369032400,-26.26,0.00010232,2]
[340039372,1728369032410,-237.73149982,0.00010237,2]
[340039373,1728369032422,-290.05850018,0.00010237,2]
[340039374,1728369032432,-176.26,0.00010249,2]
[340039375,1728369032441,-176.26,0.00010266,2]
[340039376,1728369032450,-4137.49137963,0.0001045,2]
[340039377,1728369032459,-609.58,0.00010481,2]
[340039378,1728369032469,-555.92445377,0.000105,2]
[340039379,1728369032480,-1987.07554623,0.000105,2]
[340039380,1728369032490,-199.74,0.00010666,2]
[340039381,1728369032500,-300.0,0.00010899,2]
[340039382,1728369032510,-150.0,0.00010899,2]
[340039383,1728369032519,-1000.0,0.000109,2]
[340039384,1728369032529,-197.36630642,0.000109,2]
[340039385,1728369032540,-510.02639358,0.000109,2]
[340039386,1728369032550,-145.58073048,0.000109,2]
[340039387,1728369032565,-340.28165674,0.000109,2]
[340039388,1728369032576,-627.27571278,0.000109,2]
[340039390,1728369032586,-156.89495249,0.000109,2]
[340039392,1728369032595,-2162.40807666,0.000109,2]
[340039393,1728369032607,-2218.73182334,0.000109,2]
[340039394,1728369032616,-1000.0,0.000109,2]
[340039395,1728369032625,-5411.80350246,0.000109,2]
[340039396,1728369038353,-2088.19649754,0.000109,2]
[340039398,1728369038363,-2752.00350246,0.000109,2]
[340039400,1728369038374,-1676.50215981,0.000109,2]
[340039404,1728369038653,-939.4722,0.000109,2]
[340039405,1728369038734,-569.5689955,0.000109,2]
[340039413,1728369040546,-1464.72072288,0.000109,2]
[340039455,1728369046410,-436.854385,0.000109,2]
[340039456,1728369046838,-2625.93846181,0.000109,2]
[340039457,1728369046847,-2500.0,0.000109,2]
[340039458,1728369046855,-163.09,0.000109,2]
[340039459,1728369046864,-153.21512405,0.000109,2]
[340039460,1728369046873,-2807.08,0.000109,2]
[340039461,1728369046882,-150.99,0.000109,2]
[340039462,1728369046892,-4370.83,0.000109,2]
[340039463,1728369046901,-150.99,0.000109,2]
[340039464,1728369046910,-177.78185028,0.000109,2]
[340039465,1728369046919,-225.89,0.00010902,2]
[340039466,1728369046929,-500.0,0.00010912,2]
[340039467,1728369046938,-499.99,0.00010912,2]
[340039468,1728369046947,-429.92,0.00010912,2]
[340039469,1728369046956,-523.93,0.00010912,2]
[340039470,1728369046965,-822.8,0.00010912,2]
[340039471,1728369046975,-864.77,0.00010912,2]
[340039472,1728369046984,-299.99,0.00010912,2]
[340039473,1728369046993,-939.472,0.00010918,2]
[340039474,1728369047002,-170.75,0.00010918,2]
[340039475,1728369047011,-200.0,0.00010959,2]
[340039476,1728369047020,-157.59,0.00010959,2]
[340039477,1728369047029,-247.98,0.00010959,2]
[340039478,1728369047038,-250.0,0.00010959,2]
[340039479,1728369047047,-150.0,0.00010959,2]
[340039480,1728369047056,-225.89,0.00010984,2]
[340039481,1728369047066,-225.89,0.0001099,2]
[340039482,1728369047075,-225.89,0.0001099,2]
[340039483,1728369047084,-225.89,0.0001099,2]
[340039484,1728369047092,-225.89,0.0001099,2]
[340039485,1728369047102,-225.89,0.0001099,2]
[340039486,1728369047110,-225.89,0.0001099,2]
[340039487,1728369047119,-225.89,0.0001099,2]
[340039488,1728369047128,-225.89,0.0001099,2]
[340039489,1728369047137,-1921.156,0.0001099,2]
[340039490,1728369047146,-17537.2643705,0.00010994,2]
[340039491,1728369047155,-2162.948321,0.00010994,2]
[340039492,1728369047164,-858.86239604,0.00010994,2]
[340039493,1728369047174,-167.86,0.00011,2]
[340039494,1728369047182,-569.0,0.00011,2]
[340039495,1728369047191,-54995.37024172,0.00011,2]
[340039496,1728369047203,-6238.1,0.00011,2]
[340039497,1728369226106,593.72,9.994e-05,2]
[340039498,1728369879505,608.69,9.503e-05,2]
[340039499,1728369933342,150.0,9.888e-05,2]
[340039507,1728370231504,-476.09994262,0.0001045,2]
[340039508,1728370231610,-953.51850324,0.0001045,2]
[340039509,1728370231620,-150.0,0.00010899,2]
[340039510,1728370231630,-312.85,0.000109,2]
[340039511,1728370231639,-527.3888,0.000109,2]
[340039512,1728370231649,-781.55823765,0.000109,2]
[340039513,1728370231717,-1897.85223556,0.000109,2]
[340039514,1728370231727,-1640.72325132,0.000109,2]
[340039518,1728370237504,-6079.28005423,0.000109,2]
[340039520,1728370237603,-2158.6715792,0.000109,2]
[340039521,1728370237612,-500.0,0.00010912,2]
[340039522,1728370237622,-162.27,0.00010959,2]
[340039523,1728370237631,-150.0,0.00010959,2]
[340039524,1728370237640,-153.53162403,0.00010986,2]
[340039525,1728370237649,-1552.54796547,0.00011,2]
[340039526,1728370237701,-349.87799986,0.00011,2]
[340039527,1728370237714,-3130.92447611,0.00011,2]
[340039528,1728370237725,-3397.40849,0.00011,2]
[340039529,1728370237737,-8621.8751648,0.00011,2]
[340039530,1728370237748,-1275.15327242,0.00011,2]
[340039531,1728370237760,-300.0,0.00011,2]
[340039545,1728370238003,-21760.45863702,0.00011,2]
[340039547,1728370238014,-1849.01762945,0.00011,2]
[340039554,1728370239535,-203274.18643285,0.00011,2]
[340039555,1728370239547,-5966.59176036,0.00011,2]
[340039556,1728370239558,-31550.27322222,0.00011,2]
[340039557,1728370239635,-882.80701425,0.00011,2]
[340039558,1728370239742,-7650.43,0.00011,2]
[340039587,1728370242592,-374.72962927,0.00011,2]
[340039588,1728370242603,-793.6575,0.00011,2]
[340039589,1728370242614,-3563.9999998,0.00011,2]
[340039590,1728370242693,-25281.38758261,0.00011,2]
[340039591,1728370242704,-278.59999992,0.00011,2]
[340039592,1728370242715,-414.48108,0.00011,2]
[340039593,1728370242726,-433.783328,0.00011,2]
[340039594,1728370242738,-1492.22413654,0.00011,2]
[340039595,1728370242749,-1280.14,0.00011,2]
[340039596,1728370242767,-14093.56753557,0.00011,2]
[340039597,1728370242778,-1897.54753777,0.00011,2]
[340039598,1728370242789,-977.39069926,0.00011,2]
[340039600,1728370242800,-927.77,0.00011,2]
[340039613,1728370245498,-32116.86348358,0.00011,2]
[340039614,1728370245509,-1861.594756,0.00011,2]
[340039615,1728370245520,-1455.39500522,0.00011,2]
[340039616,1728370245596,-6084.5,0.00011,2]
[340039617,1728370245693,-404.48230813,0.00011,2]
[340039618,1728370245704,-3418.46687015,0.00011,2]
[340039623,1728370420618,620.67,8.94e-05,2]
[340039626,1728370883185,250.0,0.00010225,2]
[340039627,1728371008748,500.0,0.00010143,2]
[340039628,1728371013786,640.56,8.405e-05,2]
[340039630,1728371336119,23900.0,0.00010204,2]
[340039631,1728371404574,-150.0,0.00010232,2]
[340039632,1728371422794,897.21,0.000102,2]
[340039646,1728371431604,-100.0,0.00010232,2]
[340039648,1728371431613,-250.0,0.00010254,2]
[340039650,1728371431628,-150.0,0.00010254,2]
[340039651,1728371431640,-609.27710946,0.00010289,2]
[340039652,1728371431652,-1298.37319054,0.00010289,2]
[340039653,1728371431661,-282.33,0.00010306,2]
[340039654,1728371431671,-500.0,0.00010324,2]
[340039655,1728371431680,-500.0,0.00010324,2]
[340039656,1728371431689,-150.58,0.00010344,2]
[340039657,1728371431699,-800.0,0.00010348,2]
[340039658,1728371431708,-640.56,0.00010669,2]
[340039659,1728371431717,-200.0,0.00010838,2]
[340039660,1728371431726,-261.585,0.00010867,2]
[340039661,1728371431735,-602.32,0.00010867,2]
[340039662,1728371431744,-1000.0,0.00010899,2]
[340039663,1728371431753,-150.0,0.00010899,2]
[340039664,1728371431762,-300.0,0.00010899,2]
[340039665,1728371431772,-3318.2356,0.000109,2]
[340039666,1728371431780,-1000.0,0.000109,2]
[340039667,1728371431790,-455.998,0.000109,2]
[340039668,1728371431799,-162.204,0.000109,2]
[340039669,1728371431808,-1222.578,0.000109,2]
[340039670,1728371431817,-167.49071049,0.000109,2]
[340039671,1728371431826,-9226.19362569,0.000109,2]
[340039672,1728371431834,-1547.0971,0.000109,2]
[340039673,1728371431843,-322.67866673,0.000109,2]
[340039674,1728371431853,-490.65396624,0.000109,2]
[340039675,1728371431862,-200.67355549,0.000109,2]
[340039676,1728371431872,-5647.501,0.00010923,2]
[340039677,1728371431882,-590.853,0.00010923,2]
[340039678,1728371431891,-163.89,0.00010959,2]
[340039679,1728371431900,-157.59,0.00010959,2]
[340039680,1728371431909,-250.0,0.00010959,2]
[340039681,1728371431918,-10155.16638945,0.00010967,2]
[340039682,1728371431929,-5769.150915,0.00010967,2]
[340039683,1728371431940,-707.07731665,0.00010967,2]
[340039684,1728371431952,-629.99914214,0.00010967,2]
[340039685,1728371431967,-472.47321466,0.00010967,2]
[340039686,1728371431978,-393.9067626,0.00010967,2]
[340039689,1728371431989,-371.6925449,0.00010967,2]
[340039692,1728371432000,-13790.59481179,0.00010967,2]
[340039761,1728371437728,-1404.2,0.00010967,2]
[340039762,1728371437998,-4412.57288152,0.00010967,2]
[340039763,1728371438073,-5305.36144738,0.00010967,2]
[340039764,1728371438084,-2314.30730718,0.00010967,2]
[340039765,1728371438096,-2130.40354718,0.00010967,2]
[340039772,1728371438586,703.0,0.000107,5]
[340039780,1728371439855,-252.79447601,0.00010967,2]
[340039781,1728371439867,-294.32205,0.00010967,2]
[340039785,1728371440182,-15775.73778752,0.00010967,2]
[340039786,1728371440191,-500.0,0.00010973,2]
[340039787,1728371440201,-232973.9459914,0.00011,2]
[340039793,1728371442824,-120925.0000001,0.00011,2]
[340039798,1728371445661,-26338.21826846,0.00011,2]
[340039799,1728371445794,-300.0,0.00011,2]
[340039800,1728371445930,-347.96714548,0.00011,2]
[340039801,1728371445942,-260.6034,0.00011,2]
[340039802,1728371445954,-602.28650003,0.00011,2]
[340039954,1728371626820,673.33,9.671e-05,2]
[340039955,1728371646552,300.0,0.00012,6]
[340039956,1728371712582,250.0,0.00014,10]
[340039957,1728371846497,250.0,0.00014,10]
[340039958,1728371911120,301.44,0.00012,6]
[340039959,1728371984778,3000.0,0.00014,10]
[340039960,1728372204869,685.62,8.255e-05,2]
[340039961,1728372208633,500.0,9.594e-05,2]
[340039962,1728372320216,7607.62091834,9e-05,2]
[340039963,1728372330325,448.1939945,0.000101,2]
[340039964,1728372416627,250.0,0.00010222,2]
[340039965,1728372467981,506.04133081,0.0001,2]
[340039966,1728372515526,1037.52019319,0.00010206,2]
[340039999,1728372631836,-640.0,0.00010289,2]
[340040001,1728372631846,-568.0,0.00010304,2]
[340040002,1728372631855,-75.39985363,0.00010306,2]
[340040003,1728372631867,-2755.56230281,0.00010306,2]
[340040004,1728372631906,-4741.27912961,0.00010306,2]